bitfinex-derivatives/quotes_BTCF0:USTF0_20240829
["timestamp","ask_amount","ask_price","bid_price","bid_amount"]
[1724962404347,0.00025249,59434.0,59423.0,0.00025249]
[1724962404348,0.08412,59424.0,59423.0,0.00025249]
[1724962404650,0.73492,59424.0,59423.0,0.00025249]
[1724962405847,0.75963224,59424.0,59423.0,0.00025249]
[1724962406250,0.76963224,59424.0,59423.0,0.00025249]
[1724962406550,0.77563224,59424.0,59423.0,0.00025249]
[1724962412249,0.40151224,59424.0,59423.0,0.08437349]
[1724962415360,0.40151224,59424.0,59423.0,0.00025249]
[1724962415660,0.48563224,59424.0,59423.0,0.00025249]
[1724962417951,0.168282,59409.0,59406.0,0.00088]
[1724962418155,0.602261,59409.0,59399.0,0.1167]
[1724962418351,0.29,59400.0,59399.0,0.1167]
[1724962418558,0.374154,59400.0,59399.0,0.1167]
[1724962418763,0.374154,59400.0,59391.0,0.1181]
[1724962418764,0.084162,59395.0,59391.0,0.1181]
[1724962418955,0.084162,59395.0,59391.0,0.2348]
[1724962418956,0.29,59392.0,59391.0,0.2348]
[1724962421462,0.291,59392.0,59391.0,0.2348]
[1724962421661,0.292,59392.0,59391.0,0.2348]
[1724962424163,0.31671797,59392.0,59391.0,0.2348]
[1724962425360,0.31671797,59392.0,59374.0,0.00088]
[1724962425361,0.084186,59377.0,59374.0,0.00088]
[1724962425564,0.084191,59374.0,59372.0,0.084193]
[1724962425865,0.084193,59372.0,59367.0,0.2259]
[1724962426065,0.15704,59375.0,59372.0,0.084193]
[1724962426761,0.6508,59377.0,59376.0,0.084188]
[1724962426762,0.36176,59377.0,59376.0,0.084188]
[1724962426973,0.00096,59377.0,59376.0,0.444988]
[1724962427164,0.15704,59378.0,59377.0,0.084186]
[1724962427555,0.02465203,59380.0,59379.0,0.084183]
[1724962427758,0.51784,59392.0,59379.0,0.6]
[1724962428061,0.51784,59392.0,59390.0,0.084166]
[1724962428369,0.3608,59392.0,59391.0,0.193766]
[1724962428666,0.15704,59394.0,59392.0,0.084164]
[1724962428866,0.15704,59394.0,59392.0,0.199364]
[1724962430159,0.31460832,59395.0,59392.0,0.1152]
[1724962430360,0.31460832,59395.0,59394.0,0.084162]
[1724962431158,0.39876932,59395.0,59394.0,0.084162]
[1724962431560,0.68940832,59395.0,59394.0,0.001]
[1724962432469,0.68940832,59395.0,59391.0,0.1096]
[1724962432470,0.084172,59387.0,59386.0,0.36105249]
[1724962432771,0.29,59387.0,59386.0,0.00025249]
[1724962433567,0.297,59387.0,59386.0,0.00125249]
[1724962434066,0.297,59387.0,59379.0,0.2318]
[1724962434067,0.084178,59383.0,59379.0,0.2318]
[1724962434263,0.29,59380.0,59379.0,0.2318]
[1724962435971,0.291,59380.0,59379.0,0.2318]
[1724962436874,0.291,59380.0,59379.0,0.2328]
[1724962437059,0.001,59380.0,59379.0,0.2328]
[1724962437465,0.003,59380.0,59379.0,0.315983]
[1724962437675,0.002,59380.0,59379.0,0.315983]
[1724962439066,0.002,59380.0,59379.0,0.821223]
[1724962439264,0.3608,59395.0,59379.0,0.821223]
[1724962439265,0.084155,59399.0,59393.0,0.084163]
[1724962439462,0.084155,59399.0,59380.0,0.084182]
[1724962439463,0.29,59407.0,59396.0,0.084159]
[1724962439672,0.02395145,59397.0,59396.0,0.444959]
[1724962440673,0.03795145,59397.0,59396.0,0.444959]
[1724962442472,0.05195145,59397.0,59396.0,0.444959]
[1724962442867,0.0039,59411.0,59410.0,0.084139]
[1724962443068,0.084136,59413.0,59410.0,0.444939]
[1724962443371,0.08413,59417.0,59414.0,0.084134]
[1724962443563,0.11208373,59417.0,59414.0,0.084134]
[1724962444978,0.03795373,59417.0,59411.0,0.221]
[1724962445275,0.03795373,59417.0,59416.0,0.444931]
[1724962445479,0.03795373,59417.0,59416.0,0.949851]
[1724962445772,0.02795373,59417.0,59416.0,0.949851]
[1724962445977,0.01,59417.0,59416.0,0.949851]
[1724962446174,0.01,59417.0,59416.0,1.549851]
[1724962446367,0.019,59417.0,59416.0,1.549851]
[1724962446979,0.019,59417.0,59416.0,1.550851]
[1724962447277,0.009,59417.0,59416.0,1.551851]
[1724962447479,0.02,59417.0,59416.0,1.551851]
[1724962449883,0.02,59417.0,59416.0,1.57997073]
[1724962451782,0.012028,59417.0,59416.0,1.93997073]
[1724962453472,0.0039,59431.0,59430.0,0.084111]
[1724962453678,0.0039,59443.0,59430.0,1.0816]
[1724962453880,0.15672,59456.0,59445.0,0.08409]
[1724962453881,0.087982,59451.0,59445.0,0.08409]
[1724962454077,0.15672,59456.0,59448.0,0.3608]
[1724962454276,0.15672,59456.0,59453.0,0.084079]
[1724962454781,0.15672,59456.0,59449.0,0.00025249]
[1724962454782,0.084071,59459.0,59454.0,0.084077]
[1724962455182,0.009,59456.0,59454.0,0.084077]
[1724962455374,0.023,59456.0,59454.0,0.084077]
[1724962456276,0.023,59456.0,59453.0,0.001]
[1724962456782,0.014,59456.0,59453.0,0.002]
[1724962456976,0.3608,59457.0,59454.0,0.001]
[1724962457378,0.3608,59457.0,59454.0,0.002]
[1724962457777,0.084076,59455.0,59453.0,0.001]
[1724962457979,0.084076,59455.0,59453.0,0.002]
[1724962458478,0.084076,59455.0,59453.0,0.001]
[1724962458675,0.084076,59455.0,59454.0,0.001]
[1724962459477,0.084076,59455.0,59454.0,0.002]
[1724962459882,0.444876,59455.0,59454.0,0.002]
[1724962460983,0.444876,59455.0,59454.0,0.001]
[1724962461978,0.444876,59455.0,59454.0,0.002]
[1724962463486,0.444876,59455.0,59454.0,0.001]
[1724962463787,0.01,59455.0,59454.0,0.086077]
[1724962464488,0.02900482,59459.0,59456.0,0.084074]
[1724962464683,0.11995249,59460.0,59456.0,0.084074]
[1724962465075,0.20402149,59460.0,59454.0,0.002]
[1724962465281,0.084076,59455.0,59454.0,0.001]
[1724962465480,0.094076,59455.0,59454.0,0.002]
[1724962465883,0.094076,59455.0,59454.0,0.001]
[1724962466076,0.094076,59455.0,59454.0,0.002]
[1724962466485,0.094076,59455.0,59454.0,0.001]
[1724962466693,0.094076,59455.0,59454.0,0.002]
[1724962467390,0.084076,59455.0,59454.0,0.002]
[1724962468180,0.094076,59455.0,59454.0,0.002]
[1724962468786,0.01,59455.0,59454.0,0.086077]
[1724962470092,0.01,59455.0,59454.0,0.085077]
[1724962470292,0.01,59455.0,59454.0,0.086077]
[1724962470594,0.01,59455.0,59454.0,0.002]
[1724962470797,0.01,59455.0,59454.0,0.086077]
[1724962471887,0.08407,59459.0,59458.0,0.084071]
[1724962472194,0.02939008,59460.0,59459.0,0.08407]
[1724962473289,0.02939008,59460.0,59459.0,0.08507]
[1724962474082,0.02939008,59460.0,59459.0,0.19937]
[1724962474799,0.03739008,59460.0,59459.0,0.08607]
[1724962475190,0.03739008,59460.0,59459.0,0.08507]
[1724962475393,0.03739008,59460.0,59459.0,0.08607]
[1724962475788,0.12145908,59460.0,59459.0,0.08507]
[1724962476096,0.12145908,59460.0,59459.0,0.44587]
[1724962476298,0.03739008,59460.0,59459.0,0.73587]
[1724962476498,0.03439008,59460.0,59459.0,0.73587]
[1724962477395,0.03539008,59460.0,59459.0,0.73687]
[1724962477604,0.03539008,59460.0,59459.0,0.44687]
[1724962477991,0.02939008,59460.0,59459.0,0.44487]
[1724962478287,0.03539008,59460.0,59459.0,0.44687]
[1724962478892,0.11945908,59460.0,59459.0,0.44687]
[1724962479087,0.11945908,59460.0,59459.0,0.44587]
[1724962479286,0.11945908,59460.0,59459.0,0.44687]
[1724962479687,0.11345908,59460.0,59459.0,0.44587]
[1724962479894,0.11945908,59460.0,59459.0,0.44687]
[1724962481994,0.03539008,59460.0,59459.0,0.44687]
[1724962482602,0.11945908,59460.0,59459.0,0.44687]
[1724962483600,0.11845908,59460.0,59459.0,0.44687]
[1724962484297,0.11345908,59460.0,59459.0,0.44587]
[1724962484499,0.11845908,59460.0,59459.0,0.44687]
[1724962485998,0.11845908,59460.0,59459.0,0.08607]
[1724962486312,0.11845908,59460.0,59459.0,0.44687]
[1724962486907,0.11945908,59460.0,59459.0,0.44687]
[1724962487498,0.11345908,59460.0,59459.0,0.44587]
[1724962487701,0.11945908,59460.0,59459.0,0.44687]
[1724962489297,0.11945908,59460.0,59459.0,0.08607]
[1724962489498,0.11945908,59460.0,59459.0,0.44687]
[1724962490303,0.11345908,59460.0,59459.0,0.44587]
[1724962490506,0.11945908,59460.0,59459.0,0.44687]
[1724962491699,0.11945908,59460.0,59459.0,0.44587]
[1724962491895,0.11945908,59460.0,59459.0,0.44687]
[1724962493712,0.03539008,59460.0,59459.0,0.44687]
[1724962494913,0.11945908,59460.0,59459.0,0.44687]
[1724962495211,0.03539008,59460.0,59459.0,0.44687]
[1724962495619,0.11945908,59460.0,59459.0,0.44687]
[1724962498219,0.03539008,59460.0,59459.0,0.44687]
[1724962500510,0.03539008,59460.0,59459.0,0.73687]
[1724962501111,0.03539008,59460.0,59459.0,0.82094]
[1724962502815,0.03539008,59460.0,59459.0,0.73687]
[1724962505106,0.252249,59450.0,59446.0,0.04685275]
[1724962505310,0.08409,59445.0,59428.0,0.3608]
[1724962505512,0.3608,59438.0,59428.0,0.3608]
[1724962505717,0.240414,59442.0,59434.0,0.444905]
[1724962505913,0.240414,59442.0,59434.0,0.3608]
[1724962506113,0.15632,59442.0,59434.0,0.3608]
[1724962506322,0.00025228,59444.0,59437.0,0.084101]
[1724962506513,0.15661228,59444.0,59438.0,0.349]
[1724962506708,0.00025228,59444.0,59442.0,0.084094]
[1724962506905,0.00025228,59444.0,59442.0,0.374094]
[1724962507112,0.00025228,59444.0,59443.0,0.50468]
[1724962507113,0.0280584,59444.0,59443.0,0.50468]
[1724962507319,0.00025228,59444.0,59443.0,0.50468]
[1724962508119,0.00125228,59444.0,59443.0,0.50468]
[1724962508619,0.00025228,59444.0,59443.0,0.50468]
[1724962509518,0.00025228,59444.0,59443.0,0.50668]
[1724962509718,0.27671973,59455.0,59443.0,0.002]
[1724962509912,0.084076,59455.0,59447.0,0.084087]
[1724962510112,0.084076,59455.0,59447.0,0.444887]
[1724962510312,0.11202223,59455.0,59447.0,0.444887]
[1724962511015,0.12464288,59455.0,59448.0,0.084086]
[1724962511218,0.12464288,59455.0,59447.0,0.3608]
[1724962511219,0.11202223,59455.0,59453.0,0.3608]
[1724962511521,0.11802223,59455.0,59454.0,0.3498]
[1724962511713,0.13064288,59455.0,59454.0,0.3498]
[1724962511911,0.11802223,59455.0,59454.0,0.3498]
[1724962512113,0.12202223,59455.0,59454.0,0.3498]
[1724962512615,0.11502223,59455.0,59454.0,0.3498]
[1724962512814,0.05094623,59455.0,59454.0,0.3518]
[1724962513018,0.05094623,59455.0,59454.0,1.540477]
[1724962513315,0.023,59455.0,59454.0,0.435877]
[1724962513614,0.013,59455.0,59454.0,0.434877]
[1724962513818,0.023,59455.0,59454.0,0.3518]
[1724962514013,0.107076,59455.0,59454.0,0.3518]
[1724962514214,0.01,59455.0,59454.0,0.434877]
[1724962514509,0.02,59455.0,59454.0,0.435877]
[1724962514715,0.02,59455.0,59454.0,0.434877]
[1724962515015,0.012,59455.0,59454.0,0.434877]
[1724962515218,0.022,59455.0,59454.0,0.435877]
[1724962518322,0.022,59455.0,59454.0,1.624554]
[1724962518721,0.00025228,59457.0,59456.0,0.084074]
[1724962519235,0.00025228,59457.0,59456.0,0.588634]
[1724962519925,0.00625228,59457.0,59456.0,0.589634]
[1724962520720,0.3608,59477.0,59460.0,0.084068]
[1724962520923,0.084041,59480.0,59471.0,0.3608]
[1724962521132,0.084041,59480.0,59476.0,0.084046]
[1724962521323,0.15604,59483.0,59476.0,0.084046]
[1724962521519,0.44604,59483.0,59476.0,0.084046]
[1724962522423,0.084043,59478.0,59476.0,0.084046]
[1724962523118,0.084043,59478.0,59476.0,0.085046]
[1724962524116,0.084043,59478.0,59476.0,0.086046]
[1724962525135,0.45865895,59483.0,59477.0,0.084045]
[1724962525136,0.16865895,59483.0,59477.0,0.084045]
[1724962525514,0.084042,59479.0,59477.0,0.084045]
[1724962526413,0.084042,59479.0,59477.0,0.085045]
[1724962527528,0.084042,59479.0,59477.0,0.086045]
[1724962528124,0.084042,59479.0,59478.0,0.084043]
[1724962528426,0.25269495,59483.0,59481.0,0.084038]
[1724962528618,0.240076,59483.0,59481.0,0.084038]
[1724962529123,0.084038,59482.0,59481.0,0.084038]
[1724962529319,0.15604,59483.0,59479.0,0.08404]
[1724962529520,0.084041,59480.0,59479.0,0.08404]
[1724962529728,0.15604,59483.0,59478.0,0.001]
[1724962529729,0.084042,59479.0,59478.0,0.001]
[1724962530026,0.084043,59478.0,59477.0,0.001]
[1724962530928,0.084046,59476.0,59475.0,0.084047]
[1724962531721,0.084037,59483.0,59477.0,0.084044]
[1724962532115,0.084037,59483.0,59474.0,0.00025228]
[1724962532116,0.084042,59479.0,59478.0,0.084043]
[1724962532730,0.084046,59476.0,59475.0,0.002]
[1724962533329,0.084046,59476.0,59475.0,0.001]
[1724962533833,0.084047,59475.0,59474.0,0.00025228]
[1724962535019,0.084047,59475.0,59474.0,0.00125228]
[1724962535433,0.084047,59475.0,59474.0,0.08530128]
[1724962535926,0.084047,59475.0,59474.0,0.08630128]
[1724962536227,0.084047,59475.0,59474.0,0.00225228]
[1724962537330,0.168094,59475.0,59474.0,0.00225228]
[1724962537530,1.272494,59475.0,59474.0,0.00225228]
[1724962537731,0.08406,59466.0,59462.0,0.1187]
[1724962538439,0.084064,59463.0,59462.0,0.1187]
[1724962538945,0.083064,59463.0,59462.0,0.1187]
[1724962539132,0.082064,59463.0,59462.0,0.1187]
[1724962539726,0.082064,59463.0,59462.0,0.1197]
[1724962539930,0.082064,59463.0,59462.0,0.001]
[1724962540236,0.442864,59463.0,59462.0,0.001]
[1724962540741,0.444864,59463.0,59462.0,0.002]
[1724962541337,0.445864,59463.0,59462.0,0.002]
[1724962541834,0.3638,59463.0,59462.0,0.002]
[1724962542045,0.3638,59463.0,59462.0,1.274652]
[1724962542046,0.00074772,59463.0,59462.0,1.274652]
[1724962542232,0.00025228,59468.0,59467.0,0.084059]
[1724962542540,0.00025228,59468.0,59467.0,0.734859]
[1724962542935,0.0231037,59468.0,59467.0,0.734859]
[1724962543135,0.00022,59476.0,59475.0,0.084047]
[1724962543335,0.00022,59476.0,59475.0,0.444847]
[1724962543844,0.02347961,59476.0,59475.0,0.444847]
[1724962544528,0.02347961,59476.0,59475.0,0.445847]
[1724962544833,0.00022,59476.0,59475.0,0.445847]
[1724962545631,0.00022,59476.0,59475.0,0.446847]
[1724962547647,0.00022,59476.0,59475.0,0.3628]
[1724962547648,0.084266,59476.0,59475.0,0.3628]
[1724962549540,0.00022,59476.0,59475.0,0.446847]
[1724962555842,0.57108,59494.0,59475.0,0.3628]
[1724962555843,0.40143476,59489.0,59475.0,0.3628]
[1724962556052,0.40143476,59489.0,59476.0,0.2312]
[1724962556538,0.40143476,59489.0,59481.0,0.084038]
[1724962556939,0.084033,59486.0,59483.0,0.084036]
[1724962557139,0.084033,59486.0,59484.0,0.084034]
[1724962558139,0.084033,59486.0,59485.0,0.084033]
[1724962558343,0.42397606,59489.0,59484.0,0.001]
[1724962558549,0.1065693,59489.0,59488.0,0.084029]
[1724962560243,0.084029,59488.0,59485.0,0.084033]
[1724962560443,0.00025228,59491.0,59485.0,0.084033]
[1724962560650,0.02322895,59491.0,59485.0,0.084033]
[1724962560844,0.00025228,59491.0,59485.0,0.085033]
[1724962561337,0.084032,59486.0,59485.0,0.085033]
[1724962561736,0.084032,59486.0,59485.0,0.084033]
[1724962561941,0.084032,59486.0,59485.0,0.085033]
[1724962562353,0.084032,59486.0,59485.0,0.084033]
[1724962562544,0.084032,59486.0,59485.0,0.085033]
[1724962563242,0.1070755,59491.0,59485.0,0.002]
[1724962563446,0.1070755,59491.0,59489.0,0.084026]
[1724962563743,0.0230495,59491.0,59490.0,0.315326]
[1724962564550,0.0230495,59491.0,59490.0,0.399352]
[1724962564742,0.0230495,59491.0,59490.0,0.760152]
[1724962565143,0.0230495,59491.0,59490.0,0.761152]
[1724962565351,0.0230495,59491.0,59490.0,0.762152]
[1724962565739,0.00025228,59491.0,59490.0,0.762152]
[1724962565938,0.3608,59509.0,59496.0,0.084017]
[1724962566146,0.083998,59510.0,59508.0,0.4448]
[1724962566356,0.02335103,59510.0,59509.0,0.2313]
[1724962566652,0.444794,59513.0,59509.0,0.2313]
[1724962566839,0.083998,59510.0,59509.0,0.2313]
[1724962567945,0.083998,59510.0,59509.0,0.2323]
[1724962568147,0.083998,59510.0,59509.0,0.2333]
[1724962568546,0.083998,59510.0,59509.0,0.002]
[1724962569348,0.167996,59510.0,59509.0,0.002]
[1724962570544,1.272116,59510.0,59509.0,0.002]
[1724962571355,0.167996,59510.0,59509.0,0.002]
[1724962571741,0.083998,59510.0,59509.0,0.002]
[1724962573150,0.38400745,59513.0,59509.0,0.002]
[1724962573354,0.38400745,59513.0,59512.0,0.29]
[1724962573956,0.38400745,59513.0,59509.0,0.002]
[1724962574146,0.38400745,59513.0,59508.0,0.55488]
[1724962574347,0.083999,59509.0,59508.0,0.1092]
[1724962575344,0.084004,59506.0,59505.0,0.00025206]
[1724962575745,1.188164,59506.0,59505.0,0.00025206]
[1724962575946,1.272168,59506.0,59505.0,0.00025206]
[1724962576252,0.084018,59496.0,59495.0,0.1092]
[1724962576944,0.084018,59496.0,59495.0,0.193219]
[1724962577255,0.084012,59500.0,59498.0,0.084014]
[1724962577461,0.084012,59500.0,59499.0,0.3608]
[1724962577749,0.00025206,59501.0,59499.0,0.3608]
[1724962577954,0.00025206,59501.0,59500.0,0.374012]
[1724962578455,0.083998,59510.0,59507.0,0.084002]
[1724962578655,0.083999,59509.0,59508.0,0.2223]
[1724962579251,0.444799,59509.0,59508.0,0.2223]
[1724962579449,0.6508,59509.0,59499.0,0.3608]
[1724962579653,0.084001,59508.0,59499.0,0.3618]
[1724962580161,0.084012,59500.0,59499.0,0.3618]
[1724962580344,0.084012,59500.0,59499.0,0.3608]
[1724962580550,0.084002,59507.0,59499.0,0.3608]
[1724962580751,0.084008,59503.0,59500.0,0.084011]
[1724962581154,0.65176,59509.0,59500.0,0.193711]
[1724962581155,0.084011,59501.0,59500.0,0.193711]
[1724962582861,0.6508,59509.0,59501.0,0.084009]
[1724962582862,0.084005,59505.0,59501.0,0.084009]
[1724962583058,0.084005,59505.0,59502.0,0.084009]
[1724962583365,0.00025169,59510.0,59507.0,0.084002]
[1724962583366,0.08424969,59510.0,59507.0,0.084002]
[1724962583664,0.08424969,59510.0,59504.0,0.444806]
[1724962584561,0.08424969,59510.0,59507.0,0.084002]
[1724962584760,0.084,59509.0,59507.0,0.084002]
[1724962586562,0.084005,59505.0,59504.0,0.002]
[1724962586862,0.084005,59505.0,59500.0,0.1097]
[1724962586863,0.084005,59505.0,59502.0,0.084009]
[1724962587156,0.084005,59505.0,59500.0,0.1097]
[1724962587157,0.084005,59505.0,59503.0,0.084008]
[1724962587959,0.3608,59508.0,59504.0,0.001]
[1724962588856,0.3608,59508.0,59506.0,0.084003]
[1724962589066,0.444801,59508.0,59506.0,0.084003]
[1724962589758,0.084002,59507.0,59506.0,0.084003]
[1724962590561,0.084002,59507.0,59506.0,0.086003]
[1724962590857,0.084002,59507.0,59506.0,0.446803]
[1724962591056,0.084002,59507.0,59506.0,0.085003]
[1724962591260,0.084002,59507.0,59506.0,0.086003]
[1724962592854,0.02825213,59508.0,59507.0,0.084002]
[1724962593060,0.08424969,59510.0,59509.0,0.083999]
[1724962593757,0.08424969,59510.0,59509.0,0.444799]
[1724962593955,0.11158518,59510.0,59509.0,0.444799]
[1724962594257,0.02758718,59510.0,59509.0,0.445799]
[1724962595255,0.02758718,59510.0,59509.0,0.556999]
[1724962595857,0.02758718,59510.0,59509.0,0.557999]
[1724962599364,0.02758718,59510.0,59509.0,0.641998]
[1724962600755,0.3647,59520.0,59509.0,0.641998]
[1724962600756,0.0039,59520.0,59509.0,1.57812]
[1724962600962,0.3608,59538.0,59523.0,0.16796]
[1724962600963,0.0039,59524.0,59523.0,0.16796]
[1724962601166,0.0039,59534.0,59523.0,0.37398]
[1724962601361,0.02807916,59538.0,59529.0,0.6508]
[1724962601573,0.08396,59537.0,59529.0,0.6508]
[1724962601773,0.083956,59540.0,59538.0,0.083958]
[1724962602060,0.02745444,59540.0,59539.0,0.083957]
[1724962602268,0.083952,59543.0,59539.0,0.083957]
[1724962602460,0.02817957,59543.0,59539.0,0.083957]
[1724962602654,0.3608,59544.0,59539.0,0.083957]
[1724962603256,0.38881271,59544.0,59538.0,0.001]
[1724962603461,0.38881271,59544.0,59496.0,0.15576388]
[1724962603462,0.08396,59537.0,59531.0,0.083968]
[1724962603665,0.083964,59535.0,59531.0,0.083968]
[1724962604062,0.083964,59535.0,59529.0,0.3657]
[1724962604063,0.08396,59537.0,59533.0,0.083965]
[1724962604259,0.083962,59536.0,59533.0,0.083965]
[1724962604462,0.3608,59539.0,59530.0,0.1124]
[1724962604972,0.3608,59539.0,59534.0,0.083963]
[1724962605673,0.3608,59539.0,59538.0,0.001]
[1724962605873,0.444757,59539.0,59538.0,0.001]
[1724962606068,0.083965,59534.0,59533.0,0.001]
[1724962607269,0.084965,59534.0,59533.0,0.002]
[1724962607766,0.084965,59534.0,59533.0,0.001]
[1724962608175,1.92365,59534.0,59533.0,0.001]
[1724962608367,0.167946,59528.0,59519.0,0.1124]
[1724962608674,0.528746,59528.0,59519.0,0.1124]
[1724962608873,1.632706,59528.0,59519.0,0.1124]
[1724962609768,1.632706,59528.0,59527.0,0.00225206]
[1724962610881,1.6602232,59528.0,59527.0,0.00225206]
[1724962611676,1.67283139,59528.0,59527.0,0.00125206]
[1724962611882,1.67283139,59528.0,59527.0,0.00225206]
[1724962612178,1.67283139,59528.0,59527.0,0.00125206]
[1724962612368,1.59085839,59528.0,59527.0,0.00225206]
[1724962612567,0.99085839,59528.0,59527.0,0.00225206]
[1724962612763,0.48689839,59528.0,59527.0,0.00225206]
[1724962613072,0.4742902,59528.0,59527.0,0.00225206]
[1724962613474,0.4722902,59528.0,59527.0,0.00125206]
[1724962613672,0.4742902,59528.0,59527.0,0.00225206]
[1724962615272,0.4732902,59528.0,59527.0,0.00225206]
[1724962615668,0.4732902,59528.0,59527.0,0.00125206]
[1724962615976,0.4732902,59528.0,59527.0,0.00225206]
[1724962619268,0.4722902,59528.0,59527.0,0.00225206]
[1724962619468,0.4732902,59528.0,59527.0,0.00225206]
[1724962624182,1.0612232,59528.0,59527.0,0.00225206]
[1724962624376,0.4732902,59528.0,59527.0,0.00225206]
[1724962628085,0.3893172,59528.0,59527.0,0.08622606]
[1724962635186,0.0285172,59528.0,59527.0,0.08622606]
[1724962635586,0.0285172,59528.0,59527.0,0.30742606]
[1724962638492,0.1124902,59528.0,59527.0,0.22345206]
[1724962639005,1.4932772,59528.0,59517.0,0.00088]
[1724962639187,0.444787,59518.0,59517.0,0.1092]
[1724962641492,0.446787,59518.0,59517.0,0.1102]
[1724962641888,0.47399141,59518.0,59517.0,0.1102]
[1724962642090,0.47399141,59518.0,59517.0,0.001]
[1724962642496,0.083991,59515.0,59514.0,0.2243]
[1724962642806,0.083994,59513.0,59512.0,0.00025206]
[1724962642985,0.443794,59513.0,59512.0,0.00025206]
[1724962643292,0.442794,59513.0,59512.0,0.00025206]
[1724962643792,0.441794,59513.0,59512.0,0.00025206]
[1724962644387,0.525788,59513.0,59512.0,0.00025206]
[1724962644794,0.524788,59513.0,59512.0,0.00025206]
[1724962645290,0.525788,59513.0,59512.0,0.00125206]
[1724962645492,0.528788,59513.0,59512.0,0.00225206]
[1724962647296,0.818788,59513.0,59512.0,0.00225206]
[1724962647494,0.084006,59504.0,59503.0,0.0039]
[1724962647695,0.084009,59502.0,59501.0,0.1042]
[1724962648696,0.083009,59502.0,59501.0,0.1042]
[1724962649106,0.083009,59502.0,59501.0,0.1052]
[1724962649709,0.083009,59502.0,59501.0,0.1092]
[1724962655403,0.74509839,59504.0,59503.0,0.084008]
[1724962655600,0.02261839,59504.0,59503.0,0.084008]
[1724962655808,0.00025206,59507.0,59503.0,0.084008]
[1724962656311,0.3608,59504.0,59503.0,0.084008]
[1724962657514,0.3618,59504.0,59503.0,0.001]
[1724962657914,0.445806,59504.0,59503.0,0.001]
[1724962658615,0.529812,59504.0,59503.0,0.001]
[1724962659909,0.084016,59497.0,59496.0,0.00025206]
[1724962660213,0.084021,59494.0,59493.0,0.1093]
[1724962660408,0.084028,59489.0,59486.0,0.107]
[1724962660604,0.084022,59493.0,59486.0,0.107]
[1724962660819,0.084022,59493.0,59486.0,0.191032]
[1724962661012,0.075022,59493.0,59486.0,0.107]
[1724962661213,0.15496,59492.0,59486.0,0.107]
[1724962661417,0.006,59489.0,59487.0,0.08403]
[1724962662016,0.238984,59492.0,59488.0,0.1137]
[1724962663612,0.238984,59492.0,59488.0,0.197729]
[1724962663924,0.005,59489.0,59488.0,0.197729]
[1724962664306,0.012,59489.0,59488.0,0.197729]
[1724962664516,0.007,59489.0,59488.0,0.198729]
[1724962664915,0.254984,59492.0,59488.0,0.199729]
[1724962665218,0.3608,59489.0,59488.0,0.199729]
[1724962665522,0.444828,59489.0,59488.0,0.1147]
[1724962665724,0.3688,59489.0,59488.0,0.1157]
[1724962666016,0.02240162,59493.0,59488.0,1.58078]
[1724962666209,0.00025206,59495.0,59488.0,0.4765]
[1724962666415,0.44507206,59495.0,59490.0,0.084025]
[1724962666714,0.084023,59493.0,59488.0,0.47734]
[1724962666919,0.38325935,59495.0,59490.0,0.084026]
[1724962667116,0.15472,59494.0,59490.0,0.084026]
[1724962667319,0.38325935,59495.0,59490.0,0.084026]
[1724962667521,0.38325935,59495.0,59488.0,0.1157]
[1724962667522,0.53797935,59495.0,59491.0,0.084023]
[1724962667722,0.02245935,59495.0,59494.0,0.084021]
[1724962669322,0.02645935,59495.0,59490.0,0.445825]
[1724962669618,0.02645935,59495.0,59494.0,0.001]
[1724962670623,0.10647835,59495.0,59494.0,0.001]
[1724962671320,0.10647835,59495.0,59490.0,0.084025]
[1724962671520,0.10647835,59495.0,59494.0,0.002]
[1724962673528,0.11247835,59495.0,59494.0,0.001]
[1724962674215,0.10647835,59495.0,59494.0,0.001]
[1724962674417,0.11247835,59495.0,59494.0,0.002]
[1724962675022,0.30851728,59496.0,59494.0,0.002]
[1724962675920,0.084019,59495.0,59494.0,0.002]
[1724962676716,0.084019,59495.0,59494.0,0.001]
[1724962676923,0.084019,59495.0,59494.0,0.002]
[1724962680623,0.238739,59495.0,59494.0,0.002]
[1724962681326,0.15472,59495.0,59494.0,0.002]
[1724962681517,0.15472,59495.0,59494.0,0.086021]
[1724962682023,0.02215741,59496.0,59495.0,0.084019]
[1724962682322,0.15472,59496.0,59495.0,0.084019]
[1724962682626,0.12,59497.0,59496.0,0.084018]
[1724962682827,0.12,59500.0,59498.0,0.084014]
[1724962683019,0.15472,59499.0,59498.0,0.084014]
[1724962683420,0.65896,59499.0,59488.0,0.1176]
[1724962683731,0.203028,59489.0,59488.0,0.1137]
[1724962684023,0.083028,59489.0,59488.0,0.1137]
[1724962684521,0.3608,59491.0,59490.0,0.084026]
[1724962685028,0.0457,59497.0,59490.0,0.084026]
[1724962685029,0.3598,59493.0,59490.0,0.084026]
[1724962685323,0.15472,59491.0,59490.0,0.084026]
[1724962685725,0.09663308,59496.0,59491.0,0.084024]
[1724962685920,0.15472,59495.0,59491.0,0.084024]
[1724962686121,0.3608,59494.0,59491.0,0.084024]
[1724962687315,0.3608,59493.0,59490.0,0.001]
[1724962687527,0.37341508,59493.0,59490.0,0.001]
[1724962687828,0.15472,59492.0,59491.0,0.001]
[1724962688921,0.238743,59492.0,59491.0,0.001]
[1724962689321,0.239743,59492.0,59491.0,0.002]
[1724962689533,0.239743,59492.0,59491.0,0.001]
[1724962690916,0.243743,59492.0,59491.0,0.002]
[1724962694035,0.533743,59492.0,59491.0,0.002]
[1724962694226,0.54635808,59492.0,59491.0,0.002]
[1724962695641,0.54635808,59492.0,59488.0,0.1137]
[1724962695642,0.084033,59485.0,59484.0,0.10765206]